fUSD/lending_fUSD_20240114
["ID","MTS","AMOUNT","RATE_DAILY","PERIOD"]
[311564233,1705246270012,-8750.0,0.00039125,2]
[311564234,1705246270021,-156.35152316,0.00039125,7]
[311564235,1705246270031,-797.91528114,0.00039146,7]
[311564236,1705246270041,-624.13356309,0.00039156,7]
[311564237,1705246270051,-158.46488988,0.00039169,7]
[311564238,1705246270060,-347.02853659,0.00039175,7]
[311564239,1705246270069,-347.02853659,0.00039176,7]
[311564240,1705246270079,-367.26085313,0.00039192,7]
[311564241,1705246270088,-7303.8,0.000392,7]
[311564242,1705246270097,-6030.64,0.000392,7]
[311564243,1705246270106,-272.62425839,0.0003922,2]
[311564244,1705246270115,-367.26085313,0.00039232,7]
[311564245,1705246270124,-157.40236958,0.00039234,7]
[311564246,1705246270133,-6814.96,0.00039235,7]
[311564247,1705246270141,-6814.96,0.00039235,7]
[311564248,1705246270150,-347.02853659,0.00039248,7]
[311564249,1705246270159,-154.53853969,0.00039257,7]
[311564250,1705246270168,-1000.0,0.0003926,2]
[311564251,1705246270177,-367.26085313,0.00039261,7]
[311564252,1705246270187,-182.25003522,0.00039264,7]
[311564253,1705246270196,-153.84,0.00039269,2]
[311564254,1705246270205,-500.0,0.0003927,10]
[311564255,1705246270214,-193.73671226,0.0003927,7]
[311564256,1705246270223,-624.13356309,0.00039284,7]
[311564257,1705246270233,-182.25003522,0.00039284,7]
[311564258,1705246270242,-5898.67982012,0.00039293,2]
[311564259,1705246270252,-3000.0,0.000393,4]
[311564260,1705246270262,-2000.0,0.000393,2]
[311564261,1705246270270,-1000.0,0.000393,2]
[311564262,1705246270279,-1000.0,0.000393,2]
[311564263,1705246270290,-8750.0,0.00039313,2]
[311564264,1705246270302,-193.73671226,0.00039331,7]
[311564265,1705246270311,-157.40236958,0.00039357,7]
[311564266,1705246270320,-156.06596588,0.00039358,7]
[311564267,1705246270329,-624.13356309,0.00039366,7]
[311564268,1705246270339,-797.91528114,0.00039367,7]
[311564269,1705246270348,-167.23052704,0.00039376,7]
[311564270,1705246270357,-7690.01719888,0.0003938,7]
[311564271,1705246270366,-152.79566132,0.00039381,7]
[311564272,1705246270375,-508.39117393,0.000394,4]
[311564273,1705246270385,-247.0,0.000394,7]
[311564274,1705246270394,-294.0,0.000394,28]
[311564275,1705246270403,-157.40236958,0.000394,7]
[311564276,1705246270413,-8437.09991976,0.0003942,7]
[311564277,1705246270422,-367.26085313,0.00039424,7]
[311564278,1705246270432,-2903.0,0.00039429,2]
[311564279,1705246270441,-2271.0,0.00039429,2]
[311564280,1705246270451,-945.0,0.00039429,2]
[311564281,1705246270460,-332.868,0.00039429,2]
[311564282,1705246270470,-1029.0,0.00039429,2]
[311564283,1705246270478,-303.80677563,0.00039442,7]
[311564284,1705246270487,-117966.62714458,0.00039452,2]
[311564285,1705246270496,-150.0,0.000395,5]
[311564286,1705246270506,-2250.42,0.000395,7]
[311564287,1705246270515,-8750.0,0.000395,2]
[311564288,1705246270524,-797.91528114,0.000395,7]
[311564289,1705246270533,-230.80373955,0.00039501,2]
[311564290,1705246270542,-6814.96,0.00039508,7]
[311564291,1705246270553,-6814.96,0.00039508,7]
[311564292,1705246270562,-993.0,0.00039511,20]
[311564293,1705246270572,-309.0,0.00039511,20]
[311564294,1705246270581,-151.0,0.00039511,7]
[311564295,1705246270591,-1554.62727816,0.00039516,7]
[311564296,1705246270600,-800.62570628,0.00039516,7]
[311564297,1705246270610,-1020.46391465,0.00039516,7]
[311564298,1705246270620,-844.74373627,0.00039516,7]
[311564299,1705246270630,-652.04675609,0.00039516,7]
[311564300,1705246270639,-150.0,0.0003953,3]
[311564301,1705246270649,-156.06596588,0.00039573,7]
[311564302,1705246270658,-159.84201059,0.00039586,7]
[311564303,1705246270667,-150.38376905,0.00039589,7]
[311564304,1705246270677,-66127.0,0.0003959,3]
[311564305,1705246270686,-155.88867443,0.00039591,7]
[311564306,1705246270695,-1000.00000099,0.000396,2]
[311564307,1705246270705,-500.0,0.000396,4]
[311564308,1705246270714,-7303.8,0.000396,7]
[311564309,1705246270723,-6030.64,0.000396,7]
[311564310,1705246270733,-797.91528114,0.00039603,7]
[311564311,1705246270742,-156.06596588,0.00039623,7]
[311564312,1705246270751,-10000.0,0.0003963,2]
[311564313,1705246270760,-157.40236958,0.00039636,7]
[311564314,1705246270770,-624.13356309,0.00039642,7]
[311564315,1705246270779,-303.80677563,0.00039659,7]
[311564316,1705246270791,-8750.0,0.00039688,2]
[311564317,1705246270801,-3282925.3156308,0.0003969,2]
[311564318,1705246271479,-439637.07237548,0.0003969,2]
[311564319,1705246271491,-447.06508059,0.0003969,2]
[311564320,1705246271502,-10161.59811394,0.0003969,2]
[311564321,1705246271526,-164.0,0.0003798,120]
[311564322,1705246271536,-424.19,0.0003798,120]
[311564323,1705246271546,-822.50300404,0.0003969,2]
[311564324,1705246271562,-397.106945,0.0003969,2]
[311564325,1705246271573,-1258.45896066,0.0003969,2]
[311564326,1705246271595,-470.0,0.0003799,120]
[311564327,1705246271604,-396.0,0.0003799,120]
[311564328,1705246271613,-618.41415704,0.0003969,2]
[311564329,1705246271645,-262.79677064,0.00028304,2]
[311564330,1705246271657,-237.20322936,0.00028304,2]
[311564331,1705246271667,-1724.2616084,0.0003969,2]
[311564332,1705246271678,-23333.25868379,0.0003969,2]
[311564333,1705246271689,-104775.56230138,0.0003969,2]
[311564334,1705246271701,-386.19889246,0.0003969,2]
[311564335,1705246271713,-764.75363187,0.0003969,2]
[311564336,1705246271738,-981.33783082,0.0003969,2]
[311564337,1705246271750,-353.15536203,0.0003969,2]
[311564338,1705246271762,-806.13027767,0.0003969,2]
[311564339,1705246271784,-28912.60218797,0.0003969,2]
[311564340,1705246273645,-153.0,0.00022793,2]
[311564341,1705246273655,-583.48443091,0.00022798,2]
[311564342,1705246273664,-46.31314315,0.00022798,2]
[311564343,1705246273676,-285.16054198,0.00022798,2]
[311564344,1705246273685,-1706.44042772,0.00022799,2]
[311564345,1705246273695,-1464.90588092,0.00022799,2]
[311564346,1705246273705,-196.52641064,0.00022799,2]
[311564347,1705246273714,-153.0,0.00023,2]
[311564348,1705246273723,-500.0,0.00023288,4]
[311564349,1705246273732,-139.18810714,0.00023288,4]
[311564350,1705246273743,-360.81189286,0.00023288,4]
[311564351,1705246273753,-500.0,0.00023288,4]
[311564352,1705246273762,-500.0,0.00023288,4]
[311564353,1705246273771,-79.78810714,0.00023288,4]
[311564354,1705246273788,-365.29236329,0.00022798,2]
[311564355,1705246273797,-420.21189286,0.00023288,4]
[311564356,1705246273806,-464.29045885,0.00023288,4]
[311564357,1705246273819,-35.70954115,0.00023288,4]
[311564358,1705246273828,-379.27000332,0.00023288,4]
[311564359,1705246273858,-26.62750186,0.00023288,4]
[311564360,1705246273868,-500.0,0.00023288,4]
[311564361,1705246273877,-485.36638335,0.00023288,4]
[311564362,1705246273907,-171.76196132,0.00022798,2]
[311564363,1705246273917,-14.63361665,0.00023288,4]
[311564364,1705246273928,-500.0,0.00023288,4]
[311564365,1705246273937,-500.0,0.00023288,4]
[311564366,1705246273947,-500.0,0.00023288,4]
[311564367,1705246273957,-412.54404782,0.00023288,4]
[311564368,1705246273966,-500.0,0.00023288,4]
[311564369,1705246273975,-430.01598811,0.00023288,4]
[311564370,1705246273987,-69.98401189,0.00023288,4]
[311564371,1705246273996,-210.0,0.000245,2]
[311564372,1705246274005,-8060.7043763,0.000273,2]
[311564373,1705246274017,-9143.03926859,0.000273,2]
[311564374,1705246274029,-8550.50076694,0.000273,2]
[311564375,1705246274041,-500.0,0.00028304,2]
[311564376,1705246274051,-500.0,0.00028304,2]
[311564377,1705246274061,-500.0,0.00028304,2]
[311564378,1705246274070,-500.0,0.00028304,2]
[311564379,1705246274079,-500.0,0.00028304,2]
[311564380,1705246274088,-500.0,0.00028304,2]
[311564381,1705246274097,-500.0,0.00028304,2]
[311564382,1705246274106,-500.0,0.00028304,2]
[311564383,1705246274116,-500.0,0.00032876,7]
[311564384,1705246274125,-500.0,0.00032876,7]
[311564385,1705246274135,-500.0,0.00032876,7]
[311564386,1705246274145,-500.0,0.00032876,7]
[311564387,1705246274154,-429.42312888,0.00032876,7]
[311564388,1705246274163,-500.0,0.00032876,7]
[311564389,1705246274172,-500.0,0.00032876,7]
[311564390,1705246274181,-500.0,0.00032876,7]
[311564391,1705246274190,-500.0,0.00032876,7]
[311564392,1705246274199,-559.40803586,0.00032876,7]
[311564393,1705246274208,-500.0,0.00032876,7]
[311564394,1705246274217,-1429.49627044,0.0003969,2]
[311564395,1705246274229,-1440.78516416,0.0003969,2]
[311564396,1705246274240,-170533.0959095,0.0003969,2]
[311564397,1705246274252,-1605.93138325,0.0003969,2]
[311564398,1705246274296,-500.0,0.00028304,2]
[311564399,1705246274305,-85.86420842,0.0003969,2]
[311564400,1705246274316,-585.03726834,0.0003969,2]
[311564401,1705246274329,-473.22390086,0.0003969,2]
[311564402,1705246274340,-17780.18259288,0.0003969,2]
[311564403,1705246274360,-5312.44048448,0.0003969,2]
[311564404,1705246274372,-8891.32974367,0.0003969,2]
[311564405,1705246274384,-6006.66299963,0.0003969,2]
[311564406,1705246274396,-6978.30891642,0.0003969,2]
[311564407,1705246274407,-6798.3512927,0.0003969,2]
[311564408,1705246274698,-155.63890342,0.00022798,2]
[311564409,1705246274708,-824.36109658,0.00022798,2]
[311564410,1705246274837,-3654.32465049,0.00022798,2]
[311564411,1705246274847,-474.07011327,0.00022798,2]
[311564412,1705246274856,-401.037537,0.00023,7]
[311564413,1705246274865,-500.0,0.00028304,2]
[311564414,1705246274875,-500.0,0.00028304,2]
[311564415,1705246274884,-500.0,0.00028304,2]
[311564416,1705246274893,-7266.32224776,0.0003969,2]
[311564417,1705246274905,-1100.55,0.0003969,2]
[311564418,1705246274917,-500.0,0.0003969,2]
[311564419,1705246274930,-8821.54792656,0.0003969,2]
[311564420,1705246274941,-1143.161122,0.0003969,2]
[311564421,1705246274951,-705.91989572,0.0003969,2]
[311564422,1705246274962,-1348.82775721,0.0003969,2]
[311564423,1705246274973,-4376.32054275,0.0003969,2]
[311564424,1705246275002,-22477.99101998,0.0003969,2]
[311564425,1705246275014,-19389.41051153,0.0003969,2]
[311564426,1705246275060,-151738.73624405,0.0003969,2]
[311564427,1705246275083,-352.5,0.0003969,2]
[311564428,1705246275242,-500.0,0.00028304,2]
[311564429,1705246275252,-13270.0000017,0.0003969,2]
[311564430,1705246275265,-431.0,0.0003969,2]
[311564431,1705246275286,-268.11,0.00023,7]
[311564432,1705246275297,-132.927537,0.00023,7]
[311564433,1705246275306,-100393.11022942,0.0003969,2]
[311564434,1705246275317,-1403.99118836,0.0003969,2]
[311564435,1705246275329,-761.08318395,0.0003969,2]
[311564436,1705246275340,-429.34971866,0.0003969,2]
[311564437,1705246275368,-2278.25,0.0003969,2]
[311564438,1705246275384,-335.304999,0.0003969,2]
[311564439,1705246275395,-45702.28885555,0.0003969,2]
[311564440,1705246275407,-2874.11394378,0.0003969,2]
[311564441,1705246275419,-890.2,0.0003969,2]
[311564442,1705246275430,-734.02466279,0.0003969,2]
[311564443,1705246275442,-547.29616453,0.0003969,2]
[311564444,1705246275455,-19361.9261893,0.0003969,2]
[311564445,1705246275466,-1795.26069847,0.0003969,2]
[311564446,1705246275488,-2318.10420325,0.0002239,2]
[311564447,1705246275497,-38.32625592,0.0003969,2]
[311564448,1705246277586,494.2607926,0.00022166,2]
[311564449,1705246278107,245.40639976,0.00022368,2]
[311564450,1705246313125,1428.03589514,0.00022389,2]
[311564451,1705246314464,4244.0846129,0.00022389,2]
[311564453,1705246319533,155.0,0.00022389,2]
[311564455,1705246337210,246.50580772,0.00022389,2]
[311564456,1705246352007,474.07011327,0.00022389,2]
[311564458,1705246382103,8176.2381342,0.00022389,2]
[311564459,1705246382433,150.0,0.0002239,2]
[311564460,1705246382931,695.05752287,0.00022389,2]
[311564461,1705246385285,500.0,0.00021918,2]
[311564462,1705246390032,155.0,0.00022389,2]
[311564463,1705246390697,1000.0,0.00022294,2]
[311564464,1705246393183,159.16,0.00021886,2]
[311564465,1705246401784,292.50449382,0.0002239,2]
[311564466,1705246406939,296.1719141,0.00021854,2]
[311564467,1705246406960,203.8280859,0.00021854,2]
[311564468,1705246415141,600.0,0.00022294,2]
[311564471,1705246446042,1196.1719141,0.00022294,2]
[311564472,1705246446064,735.1642859,0.00022294,2]
[311564473,1705246459003,703.1249,0.00022294,2]
[311564474,1705246471490,561.7108141,0.00021918,2]
[311564475,1705246471511,2000.0,0.00021918,2]
[311564476,1705246471534,884.2591859,0.00021918,2]
[311564477,1705246486430,161.09774084,0.0002229,2]
[311564478,1705246497218,286.33414638,0.00022294,2]
[311564479,1705246555993,668.30892688,0.00022384,2]
[311564480,1705246556013,2000.0,0.00022384,2]
[311564481,1705246556037,1575.77568602,0.00022384,2]
[311564482,1705246557324,424.22431398,0.00022384,2]
[311564483,1705246557346,49.84579929,0.00022384,2]
[311564484,1705246558071,171.76196132,0.00022384,2]
[311564485,1705246565526,161.4,0.00021821,2]
[311564486,1705246565734,161.4,0.00022185,2]
[311564487,1705246571259,-1759.57870215,0.00022387,2]
[311564488,1705246571279,-695.05752287,0.00022388,2]
[311564489,1705246571299,-1720.36377498,0.00022389,2]
[311564490,1705246615460,156.2586,0.00022294,2]
[311564491,1705246705980,695.05752287,0.00022384,2]
[311564492,1705246722483,524.39183014,0.00022384,2]
[311564493,1705246742472,163.85771866,0.000223,2]
[311564494,1705246752266,16.02656772,0.00019832,2]
[311564495,1705246752290,217.43343228,0.00019832,2]
[311564496,1705246752514,233.46,0.00022096,2]
[311564497,1705246754636,1104.69880711,0.00022289,2]
[311564498,1705246754658,755.74169289,0.00022289,2]
[311564499,1705246755248,189.04,0.00016712,2]
[311564500,1705246761073,542.53324499,0.00022384,2]
[311564501,1705246762168,68.27730151,0.00022384,2]
[311564502,1705246762195,1555.59223939,0.00022384,2]
[311564503,1705246762219,1153.30055226,0.00022384,2]
[311564504,1705246762897,168.93044142,0.00022384,2]
[311564505,1705246764155,133.36124571,0.00022384,2]
[311564506,1705246764177,87.54208129,0.00022384,2]
[311564507,1705246766931,527.51955933,0.00022384,2]
[311564508,1705246767233,1384.93835938,0.00021697,2]
[311564509,1705246767258,2000.0,0.00021697,2]
[311564510,1705246767282,2000.0,0.00021697,2]
[311564511,1705246767304,2000.0,0.00021697,2]
[311564512,1705246767327,2000.0,0.00021697,2]
[311564513,1705246767349,2000.0,0.00021697,2]
[311564514,1705246767371,2000.0,0.00021697,2]
[311564515,1705246767395,614.18766636,0.00021697,2]
[311564516,1705246767424,9900.87397426,0.00021697,2]
[311564517,1705246783406,3188.36893674,0.00021488,2]
[311564518,1705246789428,156.09682329,0.00020145,2]
[311564519,1705246793153,1596.87726617,0.00017907,2]
[311564520,1705246793502,2693.66661002,0.00021263,2]
[311564521,1705246793835,870.78937107,0.00021711,2]
[311564522,1705246803395,3188.36893674,0.00021487,2]
[311564523,1705246805567,884.63317132,0.00021697,2]
[311564524,1705246809228,846.13473323,0.00021697,2]
[311564525,1705246809679,284.06521216,0.00021697,2]
[311564526,1705246811262,155.0,0.00021697,2]
[311564527,1705246811870,155.0,0.00021697,2]
[311564528,1705246812367,170.73,0.00021606,2]
[311564529,1705246812581,170.73,0.00021665,2]
[311564530,1705246812983,170.73,0.00021724,2]
[311564531,1705246813023,155.0,0.00021697,2]
[311564532,1705246813234,170.73,0.00021784,2]
[311564533,1705246813441,170.73,0.00021843,2]
[311564534,1705246813858,170.73,0.00021902,2]
[311564535,1705246814254,170.73,0.00021961,2]
[311564536,1705246814455,170.73,0.00022021,2]
[311564537,1705246814658,170.73,0.0002208,2]
[311564538,1705246815811,155.0,0.00021697,2]
[311564539,1705246820645,1032.77891752,0.00021697,2]
[311564540,1705246821939,884.63317132,0.00021697,2]
[311564541,1705246824994,846.13473323,0.00021697,2]
[311564542,1705246825715,379.18267185,0.00021697,2]
[311564543,1705246827409,3177.57501307,0.00021375,2]
[311564544,1705246829025,155.0,0.00021697,2]
[311564545,1705246829997,156.11072127,0.00021697,2]
[311564546,1705246831247,156.22419936,0.00021697,2]
[311564547,1705246831814,155.0,0.00021697,2]
[311564549,1705246837568,885.12322381,0.00021697,2]
[311564550,1705246838748,1034.19119982,0.00021697,2]
[311564551,1705246840780,500.0,0.00021337,2]
[311564552,1705246846582,542.53324499,0.00021696,2]
[311564553,1705246847000,846.65437186,0.00021697,2]
[311564554,1705246849031,159.17582358,0.00021697,2]
[311564555,1705246852235,164.79,0.00017069,2]
[311564556,1705246892102,490.25002496,0.00022057,2]
[311564557,1705246893006,200.0,0.00021325,2]
[311564558,1705246896319,300.0,0.00022039,2]
[311564559,1705246904103,18678.102494,0.0002202,2]
[311564560,1705246908260,500.0,0.00021918,2]
[311564561,1705246920911,154.31,0.00021316,2]
[311564563,1705246941045,161.09774082,0.00022028,2]
[311564564,1705246952245,168.27,0.00021316,2]
[311564565,1705246973731,155.0,0.00022028,2]
[311564566,1705246989635,151.98,0.00021311,2]
[311564567,1705246990027,151.98,0.00021666,2]
[311564568,1705246990229,151.98,0.00022021,2]
[311564569,1705246992278,155.64910051,0.00022028,2]
[311564570,1705247012669,326.83334998,0.00022022,2]
[311564571,1705247015680,201.95,0.00021325,2]
[311564572,1705247036634,150.0,0.000216,2]
[311564578,1705247053614,250.0,0.00021289,2]
[311564579,1705247074173,500.0,0.00021283,2]
[311564580,1705247076664,300.0,0.00022023,2]
[311564581,1705247078932,-527.51955933,0.00022108,2]
[311564582,1705247078957,-1428.03589514,0.00022109,2]
[311564583,1705247078976,-44.44454553,0.00022109,2]
[311564584,1705247079459,-400.55790324,0.00022109,2]
[311564585,1705247079479,-1255.31698243,0.0002211,2]
[311564586,1705247079501,-159.68570217,0.0002211,2]
[311564587,1705247079519,-184.43941216,0.00022111,2]
[311564588,1705247079658,-100.75990867,0.00022111,2]
[311564589,1705247079679,-1899.24009133,0.00022111,2]
[311564590,1705247080069,-2000.0,0.00022111,2]
[311564591,1705247080727,-2000.0,0.00022111,2]
[311564592,1705247089793,-158.68234382,0.00022106,2]
[311564593,1705247089814,-695.05752287,0.00022107,2]
[311564594,1705247089835,-1146.26013331,0.00022108,2]
[311564595,1705247108503,150.0,0.00022082,2]
[311564596,1705247118174,-892.0,0.00022104,2]
[311564597,1705247119504,200.0,0.00021298,2]
[311564598,1705247121366,152.9,0.00021312,2]
[311564599,1705247128619,217.88889998,0.00022026,2]
[311564600,1705247168684,70711.9443,0.00022021,2]
[311564601,1705247169412,211.54056267,0.00022099,2]
[311564602,1705247172387,4484.49790015,0.00022099,2]
[311564603,1705247176854,5274.92118207,0.00022099,2]
[311564604,1705247179347,4623.14199213,0.00022099,2]
[311564605,1705247190715,2000.0,0.00021293,2]
[311564606,1705247193760,311.94853868,0.00022099,2]
[311564607,1705247200472,10548.52020323,0.00022099,2]
[311564608,1705247204079,7778.02316605,0.00022099,2]
[311564609,1705247206767,3856.82715024,0.00022099,2]
[311564610,1705247207095,487.5168,0.00022031,2]
[311564611,1705247209264,474.07011327,0.00022099,2]
[311564612,1705247215056,1255.31698243,0.00022099,2]
[311564613,1705247215892,524.39183014,0.00022099,2]
[311564614,1705247217744,2605.01077955,0.00022099,2]
[311564615,1705247221853,400.0,0.000219,7]
[311564616,1705247227974,159.68570217,0.00022099,2]
[311564617,1705247228062,1913.74997834,0.00022099,2]
[311564618,1705247231515,3002.91651816,0.00022099,2]
[311564619,1705247233321,16754.29723239,0.00022099,2]
[311564620,1705247237827,40649.29289701,0.00022099,2]
[311564621,1705247243650,155.0,0.00022099,2]
[311564622,1705247243686,24327.1934238,0.00022099,2]
[311564623,1705247244370,157.53,0.00021533,2]
[311564624,1705247249888,199.1114,0.00022018,2]
[311564625,1705247275771,246.50580772,0.00022099,2]
[311564626,1705247278244,1228.73,0.00021465,2]
[311564628,1705247282089,300.0,0.00022099,2]
[311564629,1705247283433,9584.01,0.00021287,2]
[311564630,1705247285099,1720.24699041,0.00022099,2]
[311564631,1705247285165,1040.94397812,0.00022099,2]
[311564632,1705247286519,174.03763342,0.00022099,2]
[311564633,1705247287218,90946.41736485,0.00022099,2]
[311564634,1705247287756,6433.71502651,0.00022099,2]
[311564635,1705247288232,523.58449934,0.00022099,2]
[311564636,1705247290976,10548.52020323,0.00022098,2]
[311564637,1705247291006,474.07011327,0.00022098,2]
[311564638,1705247299280,419.2486738,0.00022099,2]
[311564639,1705247304202,2137.87268645,0.00022099,2]
[311564641,1705247307367,215.35384188,0.00022082,2]
[311564642,1705247307467,178.66,0.0002146,2]
[311564643,1705247307553,178.66,0.00021519,2]
[311564644,1705247307770,178.66,0.00021578,2]
[311564645,1705247307857,178.66,0.00021637,2]
[311564646,1705247308160,178.66,0.00021696,2]
[311564647,1705247308366,178.66,0.00021755,2]
[311564648,1705247308771,178.66,0.00021813,2]
[311564649,1705247308998,178.66,0.00021872,2]
[311564650,1705247309193,178.66,0.00021931,2]
[311564651,1705247309273,1708.02080546,0.00022099,2]
[311564652,1705247309397,178.66,0.0002199,2]
[311564653,1705247309631,178.66,0.00022049,2]
[311564654,1705247316555,-211.32822293,0.000221,2]
[311564655,1705247316576,-1745.9785839,0.000221,2]
[311564656,1705247316597,-3042.69319317,0.000221,2]
[311564657,1705247318156,325.01788845,0.00022093,2]
[311564659,1705247345837,282.96,0.00019346,2]
[311564660,1705247346042,282.96,0.0002161,2]
[311564661,1705247347154,3674.39687075,0.00022099,4]
[311564662,1705247347895,156.90027062,0.00022,2]
[311564663,1705247348028,801.00440779,0.00022099,2]
[311564667,1705247359469,169.71,0.00021281,2]
[311564668,1705247364701,697.37000914,0.00022099,2]
[311564669,1705247366071,1255.31698243,0.00022099,2]
[311564671,1705247367493,474.07011327,0.00022099,2]
[311564672,1705247367736,2605.01077955,0.00022099,2]
[311564673,1705247377232,1909.0344,0.00022008,2]
[311564675,1705247398866,1000.0,0.00021262,2]
[311564677,1705247424430,445.00244877,0.00022099,2]
[311564714,1705247432103,-1335.26887752,0.000221,2]
[311564716,1705247432113,-3284.64247915,0.000221,2]
[311564718,1705247432207,-527.08787476,0.000221,2]
[311564719,1705247432219,-807.39834878,0.000221,2]
[311564720,1705247432229,-254.76383533,0.000221,2]
[311564721,1705247432238,-348.35164608,0.000221,2]
[311564722,1705247432248,-3502.69998965,0.000221,2]
[311564723,1705247432257,-2527.24759868,0.000221,2]
[311564725,1705247432266,-158.51725912,0.000221,2]
[311564727,1705247432276,-1401.02132236,0.00022102,2]
[311564728,1705247432295,-735.5475192,0.00022102,2]
[311564729,1705247432305,-543.025035,0.00022102,2]
[311564730,1705247432314,-360.34671317,0.00022102,2]
[311564731,1705247432332,-337.02329597,0.00022102,2]
[311564732,1705247432341,-1195.69456881,0.00022102,2]
[311564733,1705247432350,-292.37474055,0.00022102,2]
[311564734,1705247432359,-471.07690695,0.00022102,2]
[311564735,1705247432368,-3425.15277411,0.00022103,4]
[311564736,1705247432377,-3141.15835728,0.00022104,2]
[311564737,1705247432386,-318.31330327,0.00022104,2]
[311564738,1705247432396,-158.20515269,0.00022104,2]
[311564739,1705247432405,-2617.16595295,0.00022104,2]
[311564740,1705247432415,-1549.23494742,0.00022104,2]
[311564741,1705247432426,-716.58590338,0.00022104,2]
[311564742,1705247432435,-247.76499556,0.00022104,2]
[311564743,1705247432444,-208.24386916,0.00022104,2]
[311564744,1705247432454,-174.56544921,0.00022104,2]
[311564745,1705247432463,-277.35892287,0.00022104,2]
[311564746,1705247432472,-2864.08085982,0.00022104,2]
[311564777,1705247432866,-8.88400976,0.00022104,2]
[311564778,1705247432878,-2508.01780947,0.00022104,2]
[311564779,1705247432887,-2192.98063809,0.00022104,2]
[311564780,1705247432898,-499.73978826,0.00022105,2]
[311564781,1705247432908,-5957.87681908,0.00022105,2]
[311564782,1705247432922,-1181.2376055,0.00022105,2]
[311564783,1705247432934,-740.74445936,0.00022105,2]
[311564784,1705247432945,-292.63227138,0.00022105,2]
[311564785,1705247432956,-1759.97686169,0.00022105,2]
[311564786,1705247432968,-449.81613795,0.00022105,2]
[311564788,1705247438386,-223.45118668,0.00022105,2]
[311564789,1705247438397,-242.20345528,0.00022106,2]
[311564790,1705247438407,-157.07763095,0.00022106,2]
[311564791,1705247438416,-16152.64377195,0.00022106,2]
[311564792,1705247438426,-1912.55403703,0.00022106,2]
[311564793,1705247438435,-183.91154665,0.00022107,2]
[311564794,1705247438445,-3104.94663788,0.00022107,2]
[311564795,1705247438454,-178.66,0.00022108,2]
[311564796,1705247438465,-33355.37935014,0.00022108,2]
[311564797,1705247438474,-761.99,0.00022108,2]
[311564798,1705247438483,-1903.58,0.00022108,2]
[311564799,1705247438493,-286.70704989,0.00022109,2]
[311564800,1705247438502,-1049.80307113,0.00022109,2]
[311564801,1705247438512,-507.35582913,0.00022109,2]
[311564802,1705247438521,-158.98247279,0.00022109,2]
[311564803,1705247438530,-116336.95268382,0.00022118,2]
[311564804,1705247438540,-20873.51,0.00022118,2]
[311564806,1705247438549,-12289.26387543,0.00022126,2]
[311564808,1705247438558,-541.77348308,0.00022155,2]
[311564810,1705247438567,-499.99,0.00022155,2]
[311564812,1705247438578,-178.66,0.00022167,2]
[311564814,1705247438587,-689.50757189,0.00022189,2]
[311564816,1705247438596,-178.66,0.00022225,2]
[311564818,1705247438606,-169.71,0.00022259,2]
[311564820,1705247438616,-150.99,0.00022267,2]
[311564822,1705247438624,-1349.05,0.00022267,2]
[311564824,1705247438634,-558.15325618,0.00022271,2]
[311564826,1705247438643,-168.8993,0.00022282,2]
[311564828,1705247438652,-2114.0803,0.00022282,2]
[311564830,1705247438661,-1958.6679,0.00022282,2]
[311564832,1705247438670,-500.0,0.00022283,2]
[311564834,1705247438679,-348.4003,0.00022283,2]
[311564836,1705247438688,-178.66,0.00022284,2]
[311564838,1705247438698,-3651.9611,0.00022289,2]
[311564840,1705247438708,-880.3472,0.00022291,2]
[311564842,1705247438717,-413.1709,0.00022291,2]
[311564844,1705247438726,-347.7097,0.00022291,2]